fUSD/lending_fUSD_20250309
["ID","MTS","AMOUNT","RATE_DAILY","PERIOD"]
[355765000,1741545054530,-500.0,9.041e-05,2]
[355765001,1741545054543,-514.2309611,9.041e-05,2]
[355765002,1741545054553,-500.0,9.041e-05,2]
[355765003,1741545054563,-500.0,9.041e-05,2]
[355765004,1741545054572,-515.45134534,9.041e-05,2]
[355765005,1741545054581,-500.0,9.041e-05,2]
[355765006,1741545054591,-500.0,9.041e-05,2]
[355765007,1741545054600,-500.0,9.041e-05,2]
[355765008,1741545054610,-500.0,9.041e-05,2]
[355765009,1741545054620,-500.0,9.041e-05,2]
[355765010,1741545054629,-500.0,9.041e-05,2]
[355765011,1741545054638,-500.0,9.041e-05,2]
[355765012,1741545054648,-500.0,9.041e-05,2]
[355765013,1741545054657,-500.0,9.041e-05,2]
[355765014,1741545054667,-1414.86,9.041e-05,2]
[355765015,1741545054676,-500.0,9.041e-05,2]
[355765016,1741545054686,-500.0,9.041e-05,2]
[355765017,1741545054696,-500.0,9.041e-05,2]
[355765018,1741545054705,-500.0,9.041e-05,2]
[355765019,1741545054715,-500.0,9.041e-05,2]
[355765020,1741545054724,-500.0,9.041e-05,2]
[355765021,1741545054734,-500.0,9.041e-05,2]
[355765022,1741545054744,-500.0,9.041e-05,2]
[355765023,1741545054753,-680.49,9.041e-05,2]
[355765024,1741545054763,-500.0,9.041e-05,2]
[355765025,1741545054772,-500.0,9.041e-05,2]
[355765026,1741545054783,-500.0,9.041e-05,2]
[355765027,1741545054793,-500.0,9.041e-05,2]
[355765028,1741545054802,-500.0,9.041e-05,2]
[355765029,1741545054812,-500.0,9.041e-05,2]
[355765030,1741545054822,-500.0,9.041e-05,2]
[355765031,1741545054831,-500.0,9.041e-05,2]
[355765032,1741545054840,-512.35354066,9.041e-05,2]
[355765033,1741545054850,-220.92995944,9.041e-05,2]
[355765034,1741545054859,-500.0,9.041e-05,2]
[355765035,1741545054869,-583.57,9.041e-05,2]
[355765036,1741545054879,-500.0,9.041e-05,2]
[355765037,1741545054888,-406.43,9.041e-05,2]
[355765038,1741545054898,-500.0,9.041e-05,2]
[355765039,1741545054908,-500.0,9.041e-05,2]
[355765040,1741545054917,-500.0,9.041e-05,2]
[355765041,1741545054926,-500.0,9.041e-05,2]
[355765042,1741545054936,-500.0,9.041e-05,2]
[355765043,1741545054946,-529.06,9.041e-05,2]
[355765044,1741545054955,-500.0,9.041e-05,2]
[355765045,1741545054965,-500.0,9.041e-05,2]
[355765046,1741545054975,-500.0,9.041e-05,2]
[355765047,1741545054986,-185.09,9.041e-05,2]
[355765048,1741545054996,-500.0,9.041e-05,2]
[355765049,1741545055006,-500.0,9.041e-05,2]
[355765050,1741545055016,-500.0,9.041e-05,2]
[355765051,1741545055026,-500.0,9.041e-05,2]
[355765052,1741545055039,-500.0,9.041e-05,2]
[355765053,1741545055048,-500.0,9.041e-05,2]
[355765054,1741545055059,-500.0,9.041e-05,2]
[355765055,1741545055069,-500.0,9.041e-05,2]
[355765056,1741545055079,-500.0,9.041e-05,2]
[355765057,1741545055089,-500.0,9.041e-05,2]
[355765058,1741545055098,-500.0,9.041e-05,2]
[355765059,1741545055108,-500.0,9.041e-05,2]
[355765060,1741545055117,-500.0,9.041e-05,2]
[355765061,1741545055127,-500.0,9.041e-05,2]
[355765062,1741545055137,-500.0,9.041e-05,2]
[355765063,1741545055147,-500.0,9.041e-05,2]
[355765064,1741545055156,-500.0,9.041e-05,2]
[355765065,1741545055166,-500.0,9.041e-05,2]
[355765066,1741545055176,-500.0,9.041e-05,2]
[355765067,1741545055186,-500.0,9.041e-05,2]
[355765068,1741545055195,-500.0,9.041e-05,2]
[355765069,1741545055204,-500.0,9.041e-05,2]
[355765070,1741545055214,-500.0,9.041e-05,2]
[355765071,1741545055223,-500.0,9.041e-05,2]
[355765072,1741545055233,-500.0,9.041e-05,2]
[355765073,1741545055242,-500.0,9.041e-05,2]
[355765074,1741545055252,-500.0,9.041e-05,2]
[355765075,1741545055261,-500.0,9.041e-05,2]
[355765076,1741545055270,-500.0,9.041e-05,2]
[355765077,1741545055280,-500.0,9.041e-05,2]
[355765078,1741545055295,-500.0,9.041e-05,2]
[355765079,1741545055304,-500.0,9.041e-05,2]
[355765080,1741545055314,-500.0,9.041e-05,2]
[355765081,1741545055323,-633.68,9.041e-05,2]
[355765082,1741545055332,-701.25,9.041e-05,2]
[355765083,1741545055341,-500.0,9.041e-05,2]
[355765084,1741545055351,-500.0,9.041e-05,2]
[355765085,1741545055361,-500.0,9.041e-05,2]
[355765086,1741545055370,-2272.18,9.041e-05,2]
[355765087,1741545055379,-500.0,9.041e-05,2]
[355765088,1741545055389,-210.14093216,9.041e-05,2]
[355765089,1741545055398,-1171.86,9.041e-05,2]
[355765090,1741545055407,-7427.04,9.041e-05,2]
[355765091,1741545055417,-1191.61,9.041e-05,2]
[355765092,1741545055427,-477.74102834,9.041e-05,2]
[355765093,1741545055437,-500.0,9.041e-05,2]
[355765094,1741545055452,-2041.67,9.041e-05,2]
[355765095,1741545055462,-558.3,9.041e-05,2]
[355765096,1741545055471,-579.96,9.041e-05,2]
[355765097,1741545055481,-500.0,9.041e-05,2]
[355765098,1741545055493,-828.95,9.041e-05,2]
[355765099,1741545055503,-514.26,9.041e-05,2]
[355765100,1741545055513,-1289.06,9.041e-05,2]
[355765101,1741545055522,-500.0,9.041e-05,2]
[355765102,1741545055532,-918.82,9.041e-05,2]
[355765103,1741545055546,-500.0,9.041e-05,2]
[355765104,1741545055555,-500.0,9.041e-05,2]
[355765105,1741545055564,-576.09,9.041e-05,2]
[355765106,1741545055574,-902.67696,9.041e-05,2]
[355765107,1741545055584,-500.0,9.041e-05,2]
[355765108,1741545055641,-500.0,9.041e-05,2]
[355765109,1741545055651,-1154.42,9.041e-05,2]
[355765110,1741545055660,-1322.95,9.041e-05,2]
[355765111,1741545055669,-1652.94,9.041e-05,2]
[355765112,1741545055679,-500.0,9.041e-05,2]
[355765113,1741545055688,-1811.24,9.041e-05,2]
[355765114,1741545055697,-524.96,9.041e-05,2]
[355765115,1741545055706,-500.0,9.041e-05,2]
[355765116,1741545055716,-500.0,9.041e-05,2]
[355765117,1741545055728,-500.0,9.041e-05,2]
[355765118,1741545055737,-1000.0,9.041e-05,2]
[355765119,1741545055746,-500.0,9.041e-05,2]
[355765120,1741545055755,-634.86,9.041e-05,2]
[355765121,1741545055765,-500.0,9.041e-05,2]
[355765122,1741545055774,-1507.74,9.041e-05,2]
[355765123,1741545055787,-646.81,9.041e-05,2]
[355765124,1741545055797,-500.0,9.041e-05,2]
[355765125,1741545055807,-500.0,9.041e-05,2]
[355765126,1741545055816,-969.21,9.041e-05,2]
[355765127,1741545055826,-1250.77,9.041e-05,2]
[355765128,1741545055835,-697.95,9.041e-05,2]
[355765129,1741545055844,-316.07584028,9.041e-05,2]
[355765130,1741545055853,-860.58,9.041e-05,2]
[355765131,1741545055863,-500.0,9.041e-05,2]
[355765132,1741545055872,-487.101552,9.041e-05,2]
[355765133,1741545055881,-500.0,9.041e-05,2]
[355765134,1741545055891,-1141.96,9.041e-05,2]
[355765135,1741545055900,-2219.03,9.041e-05,2]
[355765136,1741545055909,-761.83,9.041e-05,2]
[355765137,1741545055919,-500.0,9.041e-05,2]
[355765138,1741545055929,-984.95,9.041e-05,2]
[355765139,1741545055938,-500.0,9.041e-05,2]
[355765140,1741545055947,-574.41061837,9.041e-05,2]
[355765141,1741545055956,-713.72,9.041e-05,2]
[355765142,1741545055966,-1019.61,9.041e-05,2]
[355765143,1741545055975,-748.23,9.041e-05,2]
[355765144,1741545055985,-8890.69,9.041e-05,2]
[355765145,1741545055995,-1443.09,9.041e-05,2]
[355765146,1741545056006,-1032.88,9.041e-05,2]
[355765147,1741545056015,-918.81,9.041e-05,2]
[355765148,1741545056024,-500.0,9.041e-05,2]
[355765149,1741545056037,-531.97,9.041e-05,2]
[355765150,1741545056046,-1938.67,9.041e-05,2]
[355765151,1741545056056,-500.0,9.041e-05,2]
[355765152,1741545056065,-500.0,9.041e-05,2]
[355765153,1741545056075,-1119.34,9.041e-05,2]
[355765154,1741545056084,-1570.28,9.041e-05,2]
[355765155,1741545056093,-840.99,9.041e-05,2]
[355765156,1741545056103,-500.0,9.041e-05,2]
[355765157,1741545056112,-2730.52,9.041e-05,2]
[355765158,1741545056121,-1513.83,9.041e-05,2]
[355765159,1741545056131,-618.88,9.041e-05,2]
[355765160,1741545056141,-1314.75,9.041e-05,2]
[355765161,1741545056150,-516.45907688,9.041e-05,2]
[355765162,1741545056159,-544.32,9.041e-05,2]
[355765163,1741545056168,-500.0,9.041e-05,2]
[355765164,1741545056177,-667.37,9.041e-05,2]
[355765165,1741545056186,-500.0,9.041e-05,2]
[355765166,1741545056196,-761.41,9.041e-05,2]
[355765167,1741545056205,-609.1,9.041e-05,2]
[355765168,1741545056214,-500.0,9.041e-05,2]
[355765169,1741545056223,-784.65,9.041e-05,2]
[355765170,1741545056232,-670.18,9.041e-05,2]
[355765171,1741545056241,-782.09,9.041e-05,2]
[355765172,1741545056250,-1853.57,9.041e-05,2]
[355765173,1741545056259,-655.2,9.041e-05,2]
[355765174,1741545056268,-1228.05,9.041e-05,2]
[355765175,1741545056277,-500.0,9.041e-05,2]
[355765176,1741545056288,-779.91,9.041e-05,2]
[355765177,1741545056298,-1302.49,9.041e-05,2]
[355765178,1741545056307,-4813.01,9.041e-05,2]
[355765179,1741545056316,-500.0,9.041e-05,2]
[355765180,1741545056325,-500.0,9.041e-05,2]
[355765181,1741545056334,-837.6,9.041e-05,2]
[355765182,1741545056343,-824.39,9.041e-05,2]
[355765183,1741545056352,-500.0,9.041e-05,2]
[355765184,1741545056361,-757.03,9.041e-05,2]
[355765185,1741545056371,-500.0,9.041e-05,2]
[355765186,1741545056380,-1016.47,9.041e-05,2]
[355765187,1741545056389,-588.27381875,9.041e-05,2]
[355765188,1741545056398,-1509.82,9.041e-05,2]
[355765189,1741545056407,-831.54,9.041e-05,2]
[355765190,1741545056416,-500.0,9.041e-05,2]
[355765191,1741545056425,-1858.78,9.041e-05,2]
[355765192,1741545056435,-790.02,9.041e-05,2]
[355765193,1741545056444,-500.0,9.041e-05,2]
[355765194,1741545056453,-842.95,9.041e-05,2]
[355765195,1741545056466,-828.95,9.041e-05,2]
[355765196,1741545056476,-500.0,9.041e-05,2]
[355765197,1741545056485,-2065.13,9.041e-05,2]
[355765198,1741545056494,-781.76,9.041e-05,2]
[355765199,1741545056503,-500.0,9.041e-05,2]
[355765200,1741545056517,-724.44,9.041e-05,2]
[355765201,1741545056526,-9111.5,9.041e-05,2]
[355765202,1741545056539,-500.0,9.041e-05,2]
[355765203,1741545056548,-500.0,9.041e-05,2]
[355765204,1741545056557,-3363.94,9.041e-05,2]
[355765205,1741545056567,-500.0,9.041e-05,2]
[355765206,1741545056576,-500.0,9.041e-05,2]
[355765207,1741545056586,-500.0,9.041e-05,2]
[355765208,1741545056596,-500.0,9.041e-05,2]
[355765209,1741545056606,-984.17,9.041e-05,2]
[355765210,1741545056615,-837.7,9.041e-05,2]
[355765211,1741545056624,-500.0,9.041e-05,2]
[355765212,1741545056634,-1016.5,9.041e-05,2]
[355765213,1741545056644,-422.24,9.041e-05,2]
[355765214,1741545056653,-531.71,9.041e-05,2]
[355765215,1741545056663,-500.0,9.041e-05,2]
[355765216,1741545056672,-769.27,9.041e-05,2]
[355765217,1741545056681,-2901.04,9.041e-05,2]
[355765218,1741545056691,-912.65,9.041e-05,2]
[355765219,1741545056700,-150.0,9.055e-05,2]
[355765220,1741545056711,-150.0,9.056e-05,2]
[355765221,1741545056720,-150.0,9.057e-05,2]
[355765222,1741545056730,-150.0,9.058e-05,2]
[355765223,1741545056740,-150.0,9.063e-05,2]
[355765224,1741545056749,-150.0,9.065e-05,2]
[355765225,1741545056759,-150.0,9.066e-05,2]
[355765226,1741545056769,-150.0,9.066e-05,2]
[355765227,1741545056779,-150.0,9.067e-05,2]
[355765228,1741545056794,-150.0,9.068e-05,2]
[355765229,1741545056806,-150.0,9.07e-05,2]
[355765230,1741545056817,-150.0,9.072e-05,2]
[355765231,1741545056825,-150.0,9.072e-05,2]
[355765232,1741545056832,-150.0,9.073e-05,2]
[355765233,1741545056839,-150.0,9.073e-05,2]
[355765234,1741545056847,-150.0,9.076e-05,2]
[355765235,1741545056857,-150.0,9.076e-05,2]
[355765236,1741545056867,-150.0,9.079e-05,2]
[355765237,1741545056877,-150.0,9.081e-05,2]
[355765238,1741545056887,-1000.0,9.081e-05,2]
[355765239,1741545056897,-150.0,9.081e-05,2]
[355765240,1741545056907,-150.0,9.082e-05,2]
[355765241,1741545056917,-150.0,9.084e-05,2]
[355765242,1741545056926,-150.0,9.085e-05,2]
[355765243,1741545056936,-1000.0,9.092e-05,2]
[355765244,1741545056946,-150.0,9.095e-05,2]
[355765245,1741545056955,-150.0,9.096e-05,2]
[355765246,1741545056964,-150.0,9.097e-05,2]
[355765247,1741545056973,-400.0,9.1e-05,2]
[355765248,1741545056983,-150.0,9.103e-05,2]
[355765249,1741545056992,-150.0,9.108e-05,2]
[355765250,1741545057002,-150.0,9.114e-05,2]
[355765251,1741545057011,-150.0,9.115e-05,2]
[355765252,1741545057020,-150.0,9.116e-05,2]
[355765253,1741545057029,-150.0,9.121e-05,2]
[355765254,1741545057040,-150.0,9.122e-05,2]
[355765255,1741545057050,-413.91295788,9.126e-05,2]
[355765256,1741545057060,-150.0,9.126e-05,2]
[355765257,1741545057069,-150.0,9.127e-05,2]
[355765258,1741545057078,-150.0,9.128e-05,2]
[355765259,1741545057088,-150.0,9.129e-05,2]
[355765260,1741545057099,-150.0,9.13e-05,2]
[355765261,1741545057108,-150.0,9.133e-05,2]
[355765262,1741545057118,-150.0,9.14e-05,2]
[355765263,1741545057128,-150.0,9.141e-05,2]
[355765264,1741545057137,-150.0,9.147e-05,2]
[355765265,1741545057147,-150.0,9.148e-05,2]
[355765266,1741545057156,-150.0,9.148e-05,2]
[355765267,1741545057166,-150.0,9.149e-05,2]
[355765268,1741545057175,-1000.0,9.15e-05,2]
[355765269,1741545057184,-150.0,9.151e-05,2]
[355765270,1741545057193,-150.0,9.154e-05,2]
[355765271,1741545057204,-1000.0,9.155e-05,2]
[355765272,1741545057220,-150.0,9.156e-05,2]
[355765273,1741545057234,-150.0,9.159e-05,2]
[355765274,1741545057244,-150.0,9.16e-05,2]
[355765275,1741545057253,-150.0,9.16e-05,2]
[355765276,1741545057262,-150.0,9.161e-05,2]
[355765277,1741545057271,-157.75550244,9.161e-05,2]
[355765278,1741545057281,-150.0,9.168e-05,2]
[355765279,1741545057294,-150.0,9.17e-05,2]
[355765280,1741545057305,-150.0,9.173e-05,2]
[355765281,1741545057314,-150.0,9.178e-05,2]
[355765282,1741545057324,-150.0,9.179e-05,2]
[355765283,1741545057334,-150.0,9.18e-05,2]
[355765284,1741545057344,-150.0,9.183e-05,2]
[355765285,1741545057354,-1000.0,9.188e-05,2]
[355765286,1741545057364,-150.0,9.191e-05,2]
[355765287,1741545057373,-150.0,9.191e-05,2]
[355765288,1741545057383,-1000.0,9.192e-05,2]
[355765289,1741545057393,-150.0,9.193e-05,2]
[355765290,1741545057403,-150.0,9.196e-05,2]
[355765291,1741545057413,-150.0,9.202e-05,2]
[355765292,1741545057422,-150.0,9.204e-05,2]
[355765293,1741545057432,-150.0,9.205e-05,2]
[355765294,1741545057442,-150.0,9.206e-05,2]
[355765295,1741545057455,-150.0,9.207e-05,2]
[355765296,1741545057465,-150.0,9.208e-05,2]
[355765297,1741545057474,-150.0,9.214e-05,2]
[355765298,1741545057484,-150.0,9.216e-05,2]
[355765299,1741545057494,-1459.0,9.216e-05,2]
[355765300,1741545057504,-571.0,9.216e-05,2]
[355765301,1741545057513,-641.0,9.216e-05,2]
[355765302,1741545057524,-786.0,9.216e-05,2]
[355765303,1741545057533,-1428.0,9.216e-05,2]
[355765304,1741545057545,-1270.0,9.216e-05,2]
[355765305,1741545057554,-907.0,9.216e-05,2]
[355765306,1741545057563,-541.0,9.216e-05,2]
[355765307,1741545057572,-4076.0,9.216e-05,2]
[355765308,1741545057581,-1012.0,9.216e-05,2]
[355765309,1741545057590,-3932.0,9.216e-05,2]
[355765310,1741545057599,-199.688,9.216e-05,2]
[355765311,1741545057609,-643.0,9.216e-05,2]
[355765312,1741545057618,-2032.0,9.216e-05,2]
[355765313,1741545057627,-150.0,9.217e-05,2]
[355765314,1741545057637,-150.0,9.218e-05,2]
[355765315,1741545057646,-150.0,9.224e-05,2]
[355765316,1741545057655,-150.0,9.227e-05,2]
[355765317,1741545057665,-150.0,9.229e-05,2]
[355765318,1741545057674,-150.0,9.232e-05,2]
[355765319,1741545057684,-249.06466887,9.236e-05,2]
[355765320,1741545057693,-150.0,9.237e-05,2]
[355765321,1741545057703,-150.0,9.238e-05,2]
[355765322,1741545057712,-150.0,9.239e-05,2]
[355765323,1741545057722,-150.0,9.239e-05,2]
[355765324,1741545057731,-150.0,9.239e-05,2]
[355765325,1741545057740,-151.0,9.242e-05,2]
[355765326,1741545057749,-151.0,9.242e-05,2]
[355765327,1741545057758,-226.85,9.242e-05,2]
[355765328,1741545057768,-226.85,9.242e-05,2]
[355765329,1741545057778,-151.0,9.242e-05,2]
[355765330,1741545057788,-151.0,9.242e-05,2]
[355765331,1741545057798,-157.83816242,9.243e-05,2]
[355765332,1741545057807,-1000.0,9.246e-05,2]
[355765333,1741545057817,-156.77,9.247e-05,2]
[355765334,1741545057827,-1000.0,9.247e-05,2]
[355765335,1741545057836,-150.0,9.247e-05,2]
[355765336,1741545057847,-150.0,9.25e-05,2]
[355765337,1741545057856,-150.0,9.255e-05,2]
[355765338,1741545057867,-150.0,9.255e-05,2]
[355765339,1741545057878,-150.0,9.256e-05,2]
[355765340,1741545057888,-150.0,9.258e-05,2]
[355765341,1741545057899,-150.0,9.258e-05,2]
[355765342,1741545057909,-150.0,9.266e-05,2]
[355765343,1741545057918,-150.0,9.269e-05,2]
[355765344,1741545057929,-150.0,9.269e-05,2]
[355765345,1741545057939,-400.0,9.27e-05,2]
[355765346,1741545057950,-600.0,9.27e-05,2]
[355765347,1741545057960,-150.0,9.273e-05,2]
[355765348,1741545057970,-152.45983592,9.276e-05,2]
[355765349,1741545057980,-150.0,9.277e-05,2]
[355765350,1741545057990,-150.0,9.278e-05,2]
[355765351,1741545058000,-150.0,9.28e-05,2]
[355765352,1741545058012,-150.0,9.281e-05,2]
[355765353,1741545058028,-1000.0,9.281e-05,2]
[355765354,1741545058048,-150.0,9.282e-05,2]
[355765355,1741545058058,-150.0,9.283e-05,2]
[355765356,1741545058068,-150.0,9.285e-05,2]
[355765357,1741545058078,-150.0,9.286e-05,2]
[355765358,1741545058088,-150.0,9.287e-05,2]
[355765359,1741545058098,-1000.0,9.288e-05,2]
[355765360,1741545058108,-150.0,9.291e-05,2]
[355765361,1741545058118,-150.0,9.294e-05,2]
[355765362,1741545058128,-150.0,9.295e-05,2]
[355765363,1741545058138,-1000.0,9.299e-05,2]
[355765364,1741545058148,-150.0,9.299e-05,2]
[355765365,1741545058158,-150.0,9.301e-05,2]
[355765366,1741545058168,-150.0,9.304e-05,2]
[355765367,1741545058178,-233.0,9.305e-05,2]
[355765368,1741545058188,-200.0,9.305e-05,2]
[355765369,1741545058198,-150.0,9.305e-05,2]
[355765370,1741545058208,-150.0,9.305e-05,2]
[355765371,1741545058218,-150.0,9.305e-05,2]
[355765372,1741545058227,-150.0,9.308e-05,2]
[355765373,1741545058237,-150.0,9.311e-05,2]
[355765374,1741545058246,-150.0,9.312e-05,2]
[355765375,1741545058256,-150.0,9.313e-05,2]
[355765376,1741545058266,-151.0,9.315e-05,2]
[355765377,1741545058276,-500.0,9.315e-05,2]
[355765378,1741545058286,-500.0,9.315e-05,2]
[355765379,1741545058298,-500.0,9.315e-05,2]
[355765380,1741545058308,-500.0,9.315e-05,2]
[355765381,1741545058318,-616.65,9.315e-05,2]
[355765382,1741545058327,-500.0,9.315e-05,2]
[355765383,1741545058337,-500.0,9.315e-05,2]
[355765384,1741545058347,-500.0,9.315e-05,2]
[355765385,1741545058356,-500.0,9.315e-05,2]
[355765386,1741545058367,-500.0,9.315e-05,2]
[355765387,1741545058376,-500.0,9.315e-05,2]
[355765388,1741545058386,-500.0,9.315e-05,2]
[355765389,1741545058396,-262.78054885,9.315e-05,2]
[355765390,1741545058406,-500.0,9.315e-05,2]
[355765391,1741545058416,-596.44,9.315e-05,2]
[355765392,1741545058426,-500.0,9.315e-05,2]
[355765393,1741545058435,-158.16,9.315e-05,2]
[355765394,1741545058447,-500.0,9.315e-05,2]
[355765395,1741545058457,-500.0,9.315e-05,2]
[355765396,1741545058467,-1414.86,9.315e-05,2]
[355765397,1741545058477,-500.0,9.315e-05,2]
[355765398,1741545058486,-500.0,9.315e-05,2]
[355765399,1741545058497,-218.38,9.315e-05,2]
[355765400,1741545058507,-500.0,9.315e-05,2]
[355765401,1741545058517,-500.0,9.315e-05,2]
[355765402,1741545058526,-500.0,9.315e-05,2]
[355765403,1741545058540,-500.0,9.315e-05,2]
[355765404,1741545058550,-500.0,9.315e-05,2]
[355765405,1741545058560,-680.49,9.315e-05,2]
[355765406,1741545058569,-517.35993778,9.315e-05,2]
[355765407,1741545058579,-614.28,9.315e-05,2]
[355765408,1741545058589,-500.0,9.315e-05,2]
[355765409,1741545058598,-500.0,9.315e-05,2]
[355765410,1741545058608,-458.57273467,9.315e-05,2]
[355765411,1741545058618,-500.0,9.315e-05,2]
[355765412,1741545058629,-500.0,9.315e-05,2]
[355765413,1741545058638,-500.0,9.315e-05,2]
[355765414,1741545058648,-583.57,9.315e-05,2]
[355765415,1741545058657,-500.0,9.315e-05,2]
[355765416,1741545058667,-500.0,9.315e-05,2]
[355765417,1741545058677,-500.0,9.315e-05,2]
[355765418,1741545058687,-500.0,9.315e-05,2]
[355765419,1741545058696,-500.0,9.315e-05,2]
[355765420,1741545058706,-500.0,9.315e-05,2]
[355765421,1741545058715,-529.06,9.315e-05,2]
[355765422,1741545058726,-500.0,9.315e-05,2]
[355765423,1741545058736,-500.0,9.315e-05,2]
[355765424,1741545058745,-500.0,9.315e-05,2]
[355765425,1741545058755,-500.0,9.315e-05,2]
[355765426,1741545058765,-500.0,9.315e-05,2]
[355765427,1741545058774,-500.0,9.315e-05,2]
[355765428,1741545058784,-500.0,9.315e-05,2]
[355765429,1741545058799,-500.0,9.315e-05,2]
[355765430,1741545058810,-500.0,9.315e-05,2]
[355765431,1741545058820,-500.0,9.315e-05,2]
[355765432,1741545058831,-500.0,9.315e-05,2]
[355765433,1741545058841,-500.0,9.315e-05,2]
[355765434,1741545058852,-500.0,9.315e-05,2]
[355765435,1741545058862,-500.0,9.315e-05,2]
[355765436,1741545058872,-500.0,9.315e-05,2]
[355765437,1741545058883,-356.51657022,9.315e-05,2]
[355765438,1741545058893,-500.0,9.315e-05,2]
[355765439,1741545058903,-500.0,9.315e-05,2]
[355765440,1741545058913,-567.56,9.315e-05,2]
[355765441,1741545058924,-500.0,9.315e-05,2]
[355765442,1741545058935,-500.0,9.315e-05,2]
[355765443,1741545058943,-500.0,9.315e-05,2]
[355765444,1741545058954,-500.0,9.315e-05,2]
[355765445,1741545058964,-211.82,9.315e-05,2]
[355765446,1741545058971,-243.79,9.315e-05,2]
[355765447,1741545058978,-500.0,9.315e-05,2]
[355765448,1741545058987,-500.0,9.315e-05,2]
[355765449,1741545058997,-500.0,9.315e-05,2]
[355765450,1741545059007,-500.0,9.315e-05,2]
[355765451,1741545059017,-500.0,9.315e-05,2]
[355765452,1741545059027,-500.0,9.315e-05,2]
[355765453,1741545059036,-500.0,9.315e-05,2]
[355765454,1741545059050,-633.68,9.315e-05,2]
[355765455,1741545059059,-701.25,9.315e-05,2]
[355765456,1741545059069,-500.0,9.315e-05,2]
[355765457,1741545059079,-500.0,9.315e-05,2]
[355765458,1741545059089,-2272.18,9.315e-05,2]
[355765459,1741545059099,-500.0,9.315e-05,2]
[355765460,1741545059108,-1171.86,9.315e-05,2]
[355765461,1741545059118,-7427.04,9.315e-05,2]
[355765462,1741545059128,-1191.61,9.315e-05,2]
[355765463,1741545059139,-500.0,9.315e-05,2]
[355765464,1741545059148,-2041.67,9.315e-05,2]
[355765465,1741545059156,-828.95,9.315e-05,2]
[355765466,1741545059163,-574.70738577,9.315e-05,2]
[355765467,1741545059170,-1289.06,9.315e-05,2]
[355765468,1741545059178,-500.0,9.315e-05,2]
[355765469,1741545059187,-918.82,9.315e-05,2]
[355765470,1741545059195,-297.04,9.315e-05,2]
[355765471,1741545059205,-618.14,9.315e-05,2]
[355765472,1741545059215,-576.09,9.315e-05,2]
[355765473,1741545059226,-902.67696,9.315e-05,2]
[355765474,1741545059236,-500.0,9.315e-05,2]
[355765475,1741545059247,-1154.42,9.315e-05,2]
[355765476,1741545059257,-1322.95,9.315e-05,2]
[355765477,1741545059267,-1652.94,9.315e-05,2]
[355765478,1741545059277,-366.55963369,9.315e-05,2]
[355765479,1741545059291,-1811.24,9.315e-05,2]
[355765480,1741545059302,-500.0,9.315e-05,2]
[355765481,1741545059312,-256.88,9.315e-05,2]
[355765482,1741545059322,-251.32,9.315e-05,2]
[355765483,1741545059332,-500.0,9.315e-05,2]
[355765484,1741545059343,-634.86,9.315e-05,2]
[355765485,1741545059353,-556.4,9.315e-05,2]
[355765486,1741545059363,-1507.74,9.315e-05,2]
[355765487,1741545059373,-646.81,9.315e-05,2]
[355765488,1741545059383,-354.16,9.315e-05,2]
[355765489,1741545059393,-969.21,9.315e-05,2]
[355765490,1741545059403,-1250.77,9.315e-05,2]
[355765491,1741545059413,-697.95,9.315e-05,2]
[355765492,1741545059423,-860.58,9.315e-05,2]
[355765493,1741545059433,-500.0,9.315e-05,2]
[355765494,1741545059443,-487.101552,9.315e-05,2]
[355765495,1741545059452,-566.00242515,9.315e-05,2]
[355765496,1741545059466,-1141.96,9.315e-05,2]
[355765497,1741545059475,-2219.03,9.315e-05,2]
[355765498,1741545059485,-761.83,9.315e-05,2]
[355765499,1741545059495,-984.95,9.315e-05,2]